bitfinex/quotes_SOLUSD_20250522
["timestamp","ask_amount","ask_price","bid_price","bid_amount"]
[1747905823070,5.55092978,180.15,180.1,3.14734765]
[1747905823260,19.23260152,180.15,180.1,3.14734765]
[1747905823558,5.55092978,180.15,180.1,3.14734765]
[1747905823768,19.23260152,180.15,180.1,3.14734765]
[1747905824669,19.23260152,180.15,180.11,3.14734765]
[1747905825755,5.55092978,180.15,180.11,3.14734765]
[1747905826742,5.55092978,180.15,180.12,3.14734765]
[1747905827466,13.68167174,180.14,180.12,3.14734765]
[1747905827766,27.7461096,180.21,180.12,3.14734765]
[1747905827942,13.68167174,180.15,180.12,3.14734765]
[1747905828143,13.68167174,180.15,180.13,3.14734765]
[1747905828976,5.55123792,180.14,180.13,3.14734765]
[1747905829670,19.23290966,180.14,180.13,3.14734765]
[1747905829975,19.23290966,180.14,180.11,3.14734765]
[1747905831470,19.23290966,180.14,180.1,3.14734765]
[1747905832451,13.68167174,180.12,180.1,3.14734765]
[1747905832666,13.68167174,180.13,180.1,3.14734765]
[1747905833346,5.55123792,180.14,180.1,3.14734765]
[1747905833573,13.68167174,180.13,180.1,3.14734765]
[1747905833759,13.68167174,180.12,180.1,3.14734765]
[1747905833967,19.42933273,180.14,180.1,3.14734765]
[1747905834280,13.68167174,180.12,180.1,3.14734765]
[1747905834456,5.55216256,180.11,180.1,3.14734765]
[1747905835270,19.2338343,180.11,180.08,3.14734765]
[1747905835857,13.68167174,180.1,180.08,3.14734765]
[1747905836453,5.55277916,180.09,180.08,3.14734765]
[1747905836648,5.55277916,180.09,180.05,3.14734765]
[1747905838155,19.2344509,180.09,180.05,3.14734765]
[1747905838468,5.5533959,180.07,180.05,3.14734765]
[1747905838673,5.5533959,180.07,180.06,3.14734765]
[1747905840280,19.23506764,180.07,180.03,3.14734765]
[1747905840796,13.68167174,180.06,180.03,3.14734765]
[1747905840969,13.68167174,180.05,180.03,3.14734765]
[1747905841578,13.68167174,180.06,180.03,3.14734765]
[1747905841958,13.68167174,180.06,180.01,3.14734765]
[1747905842482,5.55401277,180.05,180.01,3.14734765]
[1747905844779,5.55348324,180.07,180.01,3.14734765]
[1747905845187,5.55348324,180.07,180.01,8.70258397]
[1747905845877,13.87930071,180.13,180.02,44.64964886]
[1747905846079,13.68167174,180.14,180.02,127.64964886]
[1747905846283,34.7075054,180.16,180.06,18.64964886]
[1747905846460,48.38917714,180.16,180.07,33.3]
[1747905846657,19.23260152,180.15,180.07,33.3]
[1747905846872,19.23260152,180.15,180.07,38.85335819]
[1747905847259,13.68167174,180.14,180.07,33.3]
[1747905847656,19.42825423,180.15,180.07,33.3]
[1747905847851,13.68167174,180.11,180.07,33.3]
[1747905848263,13.68167174,180.09,180.07,33.3]
[1747905848471,13.68167174,180.1,180.07,33.3]
[1747905848670,5.55277916,180.09,180.07,33.3]
[1747905848866,5.55277916,180.09,180.04,47.84]
[1747905850364,13.68167174,180.08,180.04,47.84]
[1747905850559,19.43472707,180.09,179.98,53.39607649]
[1747905850560,13.68167174,180.07,179.98,53.39607649]
[1747905850773,19.43472707,180.09,179.99,33.3]
[1747905850774,13.68167174,180.06,179.99,33.3]
[1747905851370,13.68167174,180.06,179.99,59.3]
[1747905851983,19.43472707,180.09,180.0,3.14324653]
[1747905852180,33.3,180.13,180.01,33.3]
[1747905852490,13.68167174,180.09,180.01,33.3]
[1747905853461,13.68167174,180.09,180.02,3.14324653]
[1747905854574,5.55308751,180.08,180.02,3.14324653]
[1747905855159,5.55308751,180.08,180.03,3.14324653]
[1747905855472,19.23475925,180.08,180.03,3.14324653]
[1747905855871,13.68167174,180.07,180.03,3.14324653]
[1747905856288,13.68167174,180.07,180.02,59.3]
[1747905856486,13.68167174,180.06,180.02,59.3]
[1747905856692,5.55401277,180.05,180.02,59.3]
[1747905857991,5.55401277,180.05,179.98,18.64964886]
[1747905858298,19.23568451,180.05,180.01,10.0]
[1747905858878,5.55401277,180.05,180.01,10.0]
[1747905859282,5.55308751,180.08,180.01,10.0]
[1747905859467,33.11747804,180.08,180.01,10.0]
[1747905859674,13.68167174,180.06,180.01,10.0]
[1747905860089,5.55401277,180.05,180.01,10.0]
[1747905860404,19.23568451,180.05,180.01,10.0]
[1747905861589,13.68167174,180.04,180.01,10.0]
[1747905862181,19.23630152,180.03,180.01,10.0]
[1747905863593,13.68167174,180.02,180.01,10.0]
[1747905864189,19.23661008,180.02,180.01,10.0]
[1747905866301,5.55493834,180.02,180.01,10.0]
[1747905868497,5.55462978,180.03,180.01,10.0]
[1747905869782,19.23630152,180.03,180.01,10.0]
[1747905869992,13.68167174,180.02,180.01,10.0]
[1747905870702,19.23661008,180.02,180.01,10.0]
[1747905872987,45.23661008,180.02,180.01,10.0]
[1747905879205,63.88625894,180.02,180.01,10.0]
[1747905881197,18.64964886,180.01,179.89,107.18]
[1747905881390,13.68167174,179.94,179.89,107.18]
[1747905882007,13.68167174,179.94,179.9,3.15159453]
[1747905882315,13.68167174,179.95,179.9,3.15159453]
[1747905882697,5.55740802,179.94,179.9,3.15159453]
[1747905883089,19.23907976,179.94,179.9,3.15159453]
[1747905883318,19.23907976,179.94,179.91,3.15159453]
[1747905885006,19.23907976,179.94,179.9,3.15159453]
[1747905887701,5.55740802,179.94,179.9,3.15159453]
[1747905889419,5.55709919,179.95,179.9,3.15159453]
[1747905890420,19.23877093,179.95,179.9,3.15159453]
[1747905891211,5.55709919,179.95,179.9,3.15159453]
[1747905892496,19.44818441,179.97,179.9,3.15159453]
[1747905892718,13.68167174,179.96,179.9,3.15159453]
[1747905894925,5.55709919,179.95,179.9,3.15159453]
[1747905896910,5.55648163,179.97,179.9,8.71023185]
[1747905898635,5.55648163,179.97,179.91,3.15159453]
[1747905898812,19.23815337,179.97,179.91,3.15159453]
[1747905900214,19.23815337,179.97,179.9,3.15159453]
[1747905900614,19.23815337,179.97,179.9,8.71023529]
[1747905900817,13.68167174,179.92,179.9,3.15159453]
[1747905901012,13.68167174,179.91,179.9,3.15159453]
[1747905902615,13.68167174,179.91,179.81,33.32]
[1747905902616,26.0,179.88,179.81,33.32]
[1747905902831,13.68167174,179.86,179.81,33.32]
[1747905903238,13.68167174,179.86,179.8,36.49159453]
[1747905903818,13.68167174,179.86,179.81,3.15159453]
[1747905904139,13.68167174,179.85,179.81,3.15159453]
[1747905904517,5.56049822,179.84,179.81,3.15159453]
[1747905906614,19.24216996,179.84,179.81,3.15159453]
[1747905906836,13.68167174,179.82,179.81,3.15159453]
[1747905907720,5.56049822,179.84,179.81,3.15159453]
[1747905907937,19.24278841,179.82,179.81,3.15159453]
[1747905908723,5.56111667,179.82,179.81,3.15159453]
[1747905908918,19.24278841,179.82,179.81,3.15159453]
[1747905909119,5.56111667,179.82,179.81,3.15159453]
[1747905909431,5.56111667,179.82,179.78,3.15159453]
[1747905911045,31.56049822,179.84,179.78,3.15159453]
[1747905911342,45.24216996,179.84,179.78,3.15159453]
[1747905912044,5.56018904,179.85,179.78,3.15159453]
[1747905912836,19.24186078,179.85,179.78,3.15159453]
[1747905913148,33.14233339,179.85,179.78,3.15159453]
[1747905913641,19.46066165,179.85,179.78,3.15159453]
[1747905914532,5.56018904,179.85,179.78,8.71384041]
[1747905914948,5.56018904,179.85,179.78,3.15159453]
[1747905916153,19.24155164,179.86,179.78,3.15159453]
[1747905916357,5.5598799,179.86,179.78,8.71394214]
[1747905916656,19.24155164,179.86,179.78,8.71394214]
[1747905916974,19.24155164,179.86,179.78,3.15159453]
[1747905918148,33.1412514,179.86,179.78,3.15159453]
[1747905918662,13.68167174,179.84,179.78,3.15159453]
[1747905920351,5.56080742,179.83,179.78,3.15159453]
[1747905921668,19.24247916,179.83,179.78,3.15159453]
[1747905922374,19.24247916,179.83,179.77,3.15159453]
[1747905922758,5.56080742,179.83,179.77,3.15159453]
[1747905923172,5.56044122,179.85,179.77,8.7142217]
[1747905924182,5.56044122,179.85,179.78,3.15159453]
[1747905924886,5.56044122,179.85,179.78,8.71380607]
[1747905925782,5.56044122,179.85,179.79,3.15159453]
[1747905926158,5.5598799,179.86,179.79,8.71356441]
[1747905926574,5.5598799,179.86,179.79,3.15159453]
[1747905926889,19.24155164,179.86,179.79,3.15159453]
[1747905928078,33.1412514,179.86,179.79,36.49159453]
[1747905928958,19.24155164,179.86,179.79,42.0536187]
[1747905929258,5.5598799,179.86,179.8,3.15159453]
[1747905929895,19.24155164,179.86,179.8,3.15159453]
[1747905930099,5.5598799,179.86,179.8,3.15159453]
[1747905930591,19.24155164,179.86,179.8,3.15159453]
[1747905931168,5.5598799,179.86,179.8,3.15159453]
[1747905931997,31.55965819,179.87,179.8,8.71322157]
[1747905932273,26.0,179.87,179.8,8.71322157]
[1747905932683,26.0,179.84,179.8,3.15159453]
[1747905932886,26.0,179.82,179.8,3.15159453]
[1747905933408,39.68167174,179.84,179.75,38.9032459]
[1747905933597,26.0,179.84,179.75,38.9032459]
[1747905933777,39.68167174,179.84,179.75,38.9032459]
[1747905934276,5.56080742,179.83,179.75,33.34]
[1747905934576,5.56080742,179.83,179.76,3.15159453]
[1747905936077,5.56080742,179.83,179.77,3.15159453]
[1747905936595,13.68167174,179.81,179.77,3.15159453]
[1747905936795,39.68167174,179.8,179.77,3.15159453]
[1747905936993,13.68167174,179.78,179.77,3.15159453]
[1747905937804,13.68167174,179.78,179.72,3.15159453]
[1747905938101,13.68167174,179.76,179.72,3.15159453]
[1747905938302,5.56328233,179.75,179.72,3.15159453]
[1747905940089,13.68167174,179.74,179.72,3.15159453]
[1747905940404,5.5639014,179.73,179.72,3.15159453]
[1747905940907,5.5639014,179.73,179.7,3.15159453]
[1747905941207,39.90706356,179.77,179.7,3.15159453]
[1747905941208,39.68167174,179.76,179.7,3.15159453]
[1747905941387,39.68167174,179.76,179.7,1.65159453]
[1747905941585,13.68167174,179.75,179.7,1.65159453]
[1747905942218,19.2450897,179.75,179.7,1.65159453]
[1747905942797,5.56341796,179.75,179.69,5.56511858]
[1747905942993,45.2447355,179.76,179.69,5.56511858]
[1747905943310,31.56301676,179.76,179.69,5.56511858]
[1747905945209,19.24513863,179.75,179.69,5.56511858]
[1747905945421,5.56346689,179.75,179.69,5.56511858]
[1747905945821,5.56346689,179.75,179.68,18.64964886]
[1747905946120,5.56346689,179.75,179.68,101.64964886]
[1747905947025,33.15334447,179.75,179.68,83.0]
[1747905947212,5.5639014,179.73,179.69,33.36]
[1747905947420,19.47365491,179.73,179.69,33.36]
[1747905948827,19.47365491,179.73,179.68,83.0]
[1747905949025,33.15532665,179.73,179.66,26.0]
[1747905949228,5.56483027,179.7,179.64,43.84]
[1747905949533,5.56483027,179.7,179.65,33.36]
[1747905950030,5.56483027,179.7,179.66,33.36]
[1747905950197,19.47690595,179.7,179.66,33.36]
[1747905950505,19.47690595,179.7,179.59,5.8990222]
[1747905950712,13.68167174,179.69,179.6,95.86964886]
[1747905950916,13.68167174,179.69,179.6,121.86964886]
[1747905951110,13.68167174,179.69,179.6,95.86964886]
[1747905951423,13.68167174,179.69,179.6,88.50964886]
[1747905951726,13.68167174,179.69,179.61,33.36]
[1747905951926,13.68167174,179.69,179.62,33.36]
[1747905952727,13.68167174,179.69,179.63,33.36]
[1747905953325,5.56544968,179.68,179.63,33.36]
[1747905953620,33.16074564,179.68,179.63,33.36]
[1747905953826,13.68167174,179.66,179.59,0.33086003]
[1747905954015,19.4790739,179.68,179.6,33.36]
[1747905954206,13.68167174,179.66,179.59,0.33086003]
[1747905954407,13.68167174,179.66,179.59,33.69086003]
[1747905955101,13.68167174,179.67,179.59,33.69086003]
[1747905955310,19.24712142,179.68,179.6,18.64964886]
[1747905955515,13.68167174,179.67,179.6,24.21747278]
[1747905956320,33.16074564,179.68,179.6,33.36]
[1747905956500,5.56544968,179.68,179.6,33.36]
[1747905957427,5.56544968,179.68,179.6,38.92781978]
[1747905957938,5.56544968,179.68,179.6,5.56781978]
[1747905958143,5.56544968,179.68,179.61,33.38]
[1747905959230,5.56544968,179.68,179.61,38.94757544]
[1747905960648,5.56544968,179.68,179.61,33.38]
[1747905961141,5.56544968,179.68,179.61,38.94752893]
[1747905961321,5.56544968,179.68,179.61,33.38]
[1747905962021,19.24712142,179.68,179.61,33.38]
[1747905963041,27.59529596,179.68,179.62,33.38]
[1747905963420,27.59529596,179.68,179.59,0.33086003]
[1747905963614,13.68167174,179.66,179.6,33.38]
[1747905964846,13.68167174,179.67,179.6,33.38]
[1747905965149,13.68167174,179.67,179.59,0.33086003]
[1747905965150,13.68167174,179.63,179.59,0.33086003]
[1747905965446,13.68167174,179.64,179.59,0.33086003]
[1747905966020,13.68167174,179.65,179.59,0.33086003]
[1747905966727,26.0,179.64,179.59,0.33086003]
[1747905966935,39.68167174,179.63,179.59,0.33086003]
[1747905967122,5.56730876,179.62,179.59,0.33086003]
[1747905967737,5.56606924,179.66,179.59,0.33086003]
[1747905968232,5.56606924,179.66,179.6,18.64964886]
[1747905968440,5.56586157,179.67,179.6,18.64964886]
[1747905968661,5.56586157,179.67,179.61,43.86]
[1747905969036,13.91009259,179.73,179.63,5.56699883]
[1747905969241,13.91009259,179.73,179.64,33.38]
[1747905969450,27.59176433,179.73,179.64,33.38]
[1747905969931,13.68167174,179.72,179.64,33.38]
[1747905970353,13.68167174,179.72,179.63,5.56699883]
[1747905970354,13.68167174,179.69,179.59,26.33086003]
[1747905970551,13.68167174,179.7,179.63,26.0]
[1747905970764,13.91009259,179.73,179.63,26.0]
[1747905970765,13.68167174,179.68,179.63,26.0]
[1747905970966,13.68167174,179.69,179.63,26.0]
[1747905971153,5.56544968,179.68,179.63,26.0]
[1747905972464,5.56544968,179.68,179.61,33.38]
[1747905975393,27.59387264,179.7,179.62,26.0]
[1747905975553,5.56421099,179.72,179.64,26.0]
[1747905976587,19.24588273,179.72,179.64,26.0]
[1747905977256,13.68167174,179.72,179.64,26.0]
[1747905978051,13.68167174,179.72,179.64,31.56659916]
[1747905978245,13.68167174,179.73,179.64,31.56659916]
[1747905978472,13.68167174,179.72,179.65,33.38]
[1747905978960,13.68167174,179.71,179.65,33.38]
[1747905979157,47.28526924,179.76,179.65,33.38]
[1747905979363,5.56483027,179.7,179.65,33.38]
[1747905980566,13.68167174,179.69,179.65,33.38]
[1747905981272,13.68167174,179.69,179.63,103.24]
[1747905981675,5.56544968,179.68,179.63,103.24]
[1747905982583,5.56483027,179.7,179.66,26.0]
[1747905983697,5.56452061,179.71,179.66,26.0]
[1747905984191,19.24619235,179.71,179.66,26.0]
[1747905985779,33.15749389,179.71,179.66,26.0]
[1747905985997,13.68167174,179.7,179.66,26.0]
[1747905986695,13.68167174,179.69,179.66,26.0]
[1747905987890,5.56544968,179.68,179.63,77.24]
[1747905988499,33.16074564,179.68,179.61,43.86]
[1747905988686,19.4790739,179.68,179.62,33.38]
[1747905989803,13.91362422,179.68,179.62,33.38]
[1747905990315,13.91362422,179.68,179.63,3.16770134]
[1747905991419,5.56513996,179.69,179.63,36.54770134]
[1747905991582,5.56513996,179.69,179.64,3.16770134]
[1747905991784,5.56483027,179.7,179.64,3.16770134]
[1747905991985,33.15857769,179.7,179.64,3.16770134]
[1747905992898,33.15857769,179.7,179.65,3.16770134]
[1747905994405,33.15857769,179.7,179.66,3.16770134]
[1747905995298,13.68167174,179.68,179.66,3.16770134]
[1747905996007,5.56575944,179.67,179.63,33.38]
[1747905997011,5.56575944,179.67,179.64,3.17618441]
[1747905997199,5.56541704,179.69,179.64,3.17618441]
[1747905998087,5.56452061,179.71,179.64,3.17618441]
[1747905998316,5.56452061,179.71,179.64,8.74275075]
[1747905998693,5.56328233,179.75,179.67,26.0]
[1747905999002,5.56328233,179.75,179.68,77.14]
[1747905999196,136.9,179.78,179.68,77.14]
[1747905999197,13.68167174,179.79,179.71,26.0]
[1747905999599,5.56142594,179.81,179.72,26.0]
[1747905999917,5.56142594,179.81,179.73,33.38]
[1747906000118,5.56142594,179.81,179.73,36.55618441]
[1747906000297,5.56142594,179.81,179.73,42.1198984]
[1747906001118,5.56142594,179.81,179.76,26.0]
[1747906001415,5.56018904,179.85,179.76,26.0]
[1747906001627,5.56018904,179.85,179.77,3.17618441]
[1747906001803,5.56018904,179.85,179.78,59.38]
[1747906002426,19.24093347,179.88,179.78,64.94224112]
[1747906002626,13.68167174,179.87,179.78,64.94224112]
[1747906002785,13.68167174,179.87,179.78,64.94218263]
[1747906002991,33.13908779,179.88,179.78,64.94218263]
[1747906003191,33.13908779,179.88,179.79,3.17618441]
[1747906003192,19.45741605,179.88,179.79,3.17618441]
[1747906003623,33.13908779,179.88,179.79,3.17618441]
[1747906004121,5.55926173,179.88,179.82,26.0]
[1747906004324,5.55864369,179.9,179.82,69.76]
[1747906005502,5.55771688,179.93,179.83,18.64964886]
[1747906005711,5.55771688,179.93,179.85,26.0]
[1747906005920,5.55740802,179.94,179.85,31.56009694]
[1747906006424,5.55740802,179.94,179.89,26.0]
[1747906006611,5.55679039,179.96,179.9,33.36]
[1747906006811,19.23846213,179.96,179.9,33.36]
[1747906007124,13.68167174,179.95,179.9,33.36]
[1747906007304,19.23846213,179.96,179.9,33.36]
[1747906007510,5.55679039,179.96,179.9,33.36]
[1747906009537,13.89092131,179.98,179.9,33.36]
[1747906009915,13.68167174,179.97,179.9,33.36]
[1747906011238,13.89092131,179.98,179.9,33.36]
[1747906011621,13.68167174,179.97,179.9,33.36]
[1747906011848,5.55679039,179.96,179.9,33.36]
[1747906012850,13.89092131,179.98,179.9,33.36]
[1747906013025,13.68167174,179.97,179.9,33.36]
[1747906013220,13.68167174,179.96,179.9,33.36]
[1747906013521,13.68167174,179.98,179.9,33.36]
[1747906014142,5.55586421,179.99,179.9,38.91860485]
[1747906014330,13.68167174,179.98,179.9,38.91860485]
[1747906014726,13.68167174,179.98,179.9,33.36]
[1747906014935,19.44552474,179.99,179.9,33.36]
[1747906015132,13.68167174,179.96,179.9,33.36]
[1747906015337,13.68167174,179.95,179.9,33.36]
[1747906015635,19.44552474,179.99,179.9,33.36]
[1747906015636,13.68167174,179.97,179.9,33.36]
[1747906016061,13.68167174,179.96,179.9,33.36]
[1747906016638,19.44552474,179.99,179.9,33.36]
[1747906016842,13.68167174,179.96,179.9,33.36]
[1747906017148,5.55709919,179.95,179.9,33.36]
[1747906017345,5.5561729,179.98,179.9,33.36]
[1747906017648,5.55524693,180.01,179.93,26.0]
[1747906017853,19.23691867,180.01,179.93,26.0]
[1747906018245,13.68167174,179.99,179.93,26.0]
[1747906018447,13.68167174,180.0,179.93,26.0]
[1747906018650,13.68167174,180.0,179.95,26.0]
[1747906018845,13.68167174,180.0,179.96,33.34]
[1747906020336,13.68167174,180.0,179.87,13.89855812]
[1747906020545,5.55648163,179.97,179.88,102.9]
[1747906020742,19.23815337,179.97,179.88,102.9]
[1747906020969,5.55648163,179.97,179.88,102.9]
[1747906021844,13.68167174,179.97,179.88,108.45925561]
[1747906022045,47.21435314,180.03,179.88,108.45925561]
[1747906022576,13.68167174,179.98,179.88,108.45925561]
[1747906022743,27.77314891,180.03,179.92,26.0]
[1747906023075,13.88734585,180.02,179.92,26.0]
[1747906023363,13.68167174,180.0,179.92,26.0]
[1747906024448,5.55586421,179.99,179.92,26.0]
[1747906025971,5.55586421,179.99,179.92,31.55797016]
[1747906026768,5.55586421,179.99,179.91,5.55824429]
[1747906027845,19.23722729,180.0,179.92,26.0]
[1747906028045,5.55555555,180.0,179.92,26.0]
[1747906028368,32.3313206,180.07,179.98,26.0]
[1747906028369,5.5533959,180.07,179.98,26.0]
[1747906028676,13.68167174,180.06,179.99,33.32]
[1747906029057,13.68167174,180.05,179.99,33.32]
[1747906029259,13.68167174,180.04,179.99,33.32]
[1747906029467,19.43688565,180.07,179.99,33.32]
[1747906029468,13.68167174,180.03,179.99,33.32]
[1747906029968,5.55493834,180.02,179.99,33.32]
[1747906030351,5.55370432,180.06,179.99,33.32]
[1747906030758,19.43796512,180.06,179.99,33.32]
[1747906030954,13.68167174,180.04,179.99,33.32]
[1747906031774,5.55462978,180.03,179.99,33.32]
[1747906033875,5.55432126,180.04,179.99,33.32]
[1747906034965,33.12179615,180.04,179.99,33.32]
[1747906037084,5.55432126,180.04,179.99,33.32]
[1747906037391,5.55432126,180.04,179.99,59.32]
[1747906037582,19.235993,180.04,179.99,59.32]
[1747906037783,13.68167174,180.03,179.99,59.32]
[1747906037993,19.44012441,180.04,179.99,59.32]
[1747906038291,5.55432126,180.04,179.99,59.32]
[1747906039894,13.68167174,180.05,179.99,59.32]
[1747906040887,13.68167174,180.03,179.99,33.32]
[1747906041092,13.68167174,180.01,179.9,5.55836143]
[1747906041397,18.64964886,180.06,179.92,43.56]
[1747906041569,18.64964886,180.06,179.93,26.0]
[1747906041570,13.68167174,180.01,179.93,26.0]
[1747906041981,19.23722729,180.0,179.92,43.56]
[1747906042398,33.12611617,180.0,179.93,26.0]
[1747906042596,19.44444443,180.0,179.93,26.0]
[1747906042799,33.12611617,180.0,179.93,26.0]
[1747906042997,33.12611617,180.0,179.94,3.11969651]
[1747906043196,33.12611617,180.0,179.94,36.43969651]
[1747906043398,5.55555555,180.0,179.94,36.43969651]
[1747906043909,5.55555555,180.0,179.97,26.0]
[1747906044205,33.12288373,180.03,179.97,26.0]
[1747906044583,19.44121199,180.03,179.97,26.0]
[1747906044895,33.12288373,180.03,179.98,3.11969651]
[1747906046188,33.12288373,180.03,179.99,3.11969651]
[1747906046384,13.68167174,180.02,179.99,3.11969651]
[1747906046589,13.68167174,180.01,179.99,3.11969651]
[1747906046893,13.68167174,180.0,179.99,3.11969651]
[1747906047410,13.68167174,180.01,179.96,3.11969651]
[1747906048511,5.55555555,180.0,179.96,3.11969651]
[1747906048894,5.55555555,180.0,179.97,3.11969651]
[1747906049209,19.44444443,180.0,179.97,3.11969651]
[1747906050001,19.44444443,180.0,179.98,3.11969651]
[1747906050392,33.12611617,180.0,179.98,3.11969651]
[1747906051614,33.12611617,180.0,179.92,43.56]
[1747906051819,13.68167174,179.96,179.9,41.12821399]
[1747906051993,13.68167174,179.94,179.9,7.80821399]
[1747906052188,5.55802578,179.92,179.9,7.80821399]
[1747906052508,19.23969752,179.92,179.9,7.80821399]
[1747906052714,13.68167174,179.91,179.9,7.80821399]
[1747906053292,19.23969752,179.92,179.9,7.80821399]
[1747906053494,5.55802578,179.92,179.9,7.80821399]
[1747906054413,5.55740802,179.94,179.9,7.80821399]
[1747906054725,13.68167174,179.99,179.9,46.68677105]
[1747906054891,13.68167174,179.99,179.91,3.15754074]
[1747906055917,5.5561729,179.98,179.91,3.15754074]
[1747906056408,5.5561729,179.98,179.91,8.71585322]
[1747906057310,5.5561729,179.98,179.92,3.15754074]
[1747906057536,27.5706316,180.0,179.92,3.15754074]
[1747906057537,5.55586421,179.99,179.92,3.15754074]
[1747906057748,5.55586421,179.99,179.93,26.0]
[1747906059115,5.55586421,179.99,179.94,3.15754074]
[1747906060033,13.68167174,180.0,179.94,3.15754074]
[1747906060713,13.68167174,180.01,179.95,3.15754074]
[1747906061942,5.55555555,180.0,179.96,3.15754074]
[1747906062149,19.44444443,180.0,179.96,3.15754074]
[1747906062354,5.55555555,180.0,179.96,36.47754074]
[1747906062511,13.68167174,180.05,179.96,62.47754074]
[1747906062711,13.68167174,180.04,179.96,62.47754074]
[1747906062912,13.68167174,180.01,179.97,3.15754074]
[1747906063215,32.53468079,180.05,179.97,3.15754074]
[1747906063412,13.68167174,180.0,179.97,3.15754074]
[1747906063655,13.68167174,180.01,179.97,3.15754074]
[1747906064318,5.55555555,180.0,179.94,33.32]
[1747906064544,19.44444443,180.0,179.94,33.32]
[1747906065071,5.55555555,180.0,179.94,33.32]
[1747906066273,5.55524693,180.01,179.95,3.15781525]
[1747906066844,5.55524693,180.01,179.97,26.0]
[1747906067539,5.55524693,180.01,179.98,3.15781525]
[1747906068382,19.44138669,180.03,179.98,3.15781525]
[1747906069143,19.44138669,180.03,179.99,3.15781525]
[1747906069456,13.68167174,180.0,179.99,3.15781525]
[1747906070069,13.68167174,180.01,179.99,3.15781525]
[1747906070275,13.68167174,180.02,179.99,3.15781525]
[1747906070453,13.68167174,180.01,179.99,3.15781525]
[1747906070658,13.68167174,180.01,179.94,33.32]
[1747906071277,18.64964886,180.04,179.94,33.32]
[1747906071456,13.68167174,180.01,179.94,33.32]
[1747906071975,13.68167174,180.01,179.95,3.15964564]
[1747906072271,18.64964886,180.04,179.95,3.15964564]
[1747906072485,33.12611617,180.0,179.95,3.15964564]
[1747906073050,33.12611617,180.0,179.96,3.15964564]
[1747906073772,19.44444443,180.0,179.96,3.15964564]
[1747906073950,33.12611617,180.0,179.96,3.15964564]
[1747906074258,33.12611617,180.0,179.94,3.15964564]
[1747906074455,13.68167174,179.99,179.94,3.15964564]
[1747906074874,33.12611617,180.0,179.94,3.15964564]
[1747906075258,13.68167174,179.98,179.94,3.15964564]
[1747906075967,13.68167174,179.99,179.94,3.15964564]
[1747906076184,13.68167174,179.98,179.94,3.15964564]
[1747906076352,5.55648163,179.97,179.94,3.15964564]
[1747906077376,5.55648163,179.97,179.93,3.15964564]
[1747906078057,19.44698297,179.98,179.93,3.15964564]
[1747906078585,33.12865471,179.98,179.93,3.15964564]
[1747906078958,13.68167174,179.97,179.93,3.15964564]
[1747906079781,13.68167174,179.96,179.93,3.15964564]
[1747906079982,13.68167174,179.96,179.92,3.15964564]
[1747906080186,5.55709919,179.95,179.92,3.15964564]
[1747906080784,13.68167174,179.93,179.92,3.15964564]
[1747906080983,13.68167174,179.94,179.92,3.15964564]
[1747906081579,13.68167174,179.93,179.92,3.15964564]
[1747906081783,13.68167174,179.93,179.89,3.15964564]
[1747906081984,19.44984717,179.95,179.89,3.15964564]
[1747906082158,13.68167174,179.94,179.89,3.15964564]
[1747906082570,13.89274798,179.95,179.89,3.15964564]
[1747906082759,13.68167174,179.94,179.89,3.15964564]
[1747906083483,13.68167174,179.94,179.9,3.15964564]
[1747906083874,13.89274798,179.95,179.9,3.15964564]
[1747906084072,13.68167174,179.94,179.9,3.15964564]
[1747906084373,13.89274798,179.95,179.9,3.15964564]
[1747906084684,13.68167174,179.94,179.9,3.15964564]
[1747906084882,13.68167174,179.92,179.9,3.15964564]
[1747906085180,13.68167174,179.94,179.9,3.15964564]
[1747906085488,5.55648163,179.97,179.89,3.15964564]
[1747906085979,5.55648163,179.97,179.89,8.71838797]
[1747906086381,5.53648163,179.97,179.89,8.71838797]
[1747906086583,19.44699098,179.98,179.9,3.15964564]
[1747906087775,19.44699098,179.98,179.93,26.0]
[1747906087974,19.44699098,179.98,179.93,59.32]
[1747906088390,5.5561729,179.98,179.93,59.32]
[1747906088792,5.5561729,179.98,179.94,3.15964564]
[1747906089777,13.68167174,179.96,179.94,3.15964564]
[1747906090090,19.23877093,179.95,179.94,3.15964564]
[1747906091487,19.23877093,179.95,179.9,3.15964564]
[1747906092001,5.55709919,179.95,179.9,3.15964564]
[1747906092698,19.23877093,179.95,179.91,3.15964564]
[1747906094089,19.23877093,179.95,179.89,33.32]
[1747906094090,19.23877093,179.95,179.92,3.15964564]